bitfinex-derivatives/quotes_SOLF0:USTF0_20251219
["timestamp","ask_amount","ask_price","bid_price","bid_amount"]
[1766160528912,0.05016759,126.25,126.21,0.05763582]
[1766160529535,0.05016759,126.25,126.21,13.88763582]
[1766160529720,15.01,126.3,126.21,13.88763582]
[1766160529721,61.75,126.3,126.21,13.88763582]
[1766160530026,61.75,126.3,126.21,13.83]
[1766160530330,15.01,126.29,126.21,13.83]
[1766160530522,15.01,126.29,126.21,20.9646]
[1766160530722,0.05503998,126.26,126.24,0.0540919]
[1766160531024,0.05503998,126.26,126.24,0.0040919]
[1766160531218,15.06503998,126.26,126.24,0.0040919]
[1766160532230,15.06503998,126.26,126.18,60.61]
[1766160532431,15.01,126.26,126.18,67.7464]
[1766160533227,0.06083399,126.23,126.18,67.7464]
[1766160533430,0.06083399,126.23,126.21,0.05820629]
[1766160534325,0.06083399,126.23,126.16,14.47934881]
[1766160534326,0.06083399,126.23,126.16,20.9673]
[1766160535225,0.06083399,126.23,126.18,0.06076313]
[1766160539128,15.07083399,126.23,126.18,0.06076313]
[1766160539724,15.07083399,126.23,126.18,0.00076313]
[1766160540432,22.1449,126.21,126.18,0.00076313]
[1766160541333,0.06083399,126.23,126.18,0.00076313]
[1766160541933,15.07083399,126.23,126.18,0.00076313]
[1766160543332,3.75459733,126.22,126.18,0.00076313]
[1766160544236,16.66459733,126.22,126.18,0.00076313]
[1766160544431,0.06083399,126.23,126.18,0.00076313]
[1766160545238,0.06083399,126.23,126.19,7.1358]
[1766160545738,63.40459733,126.28,126.19,13.49]
[1766160545941,63.40459733,126.28,126.21,7.1347]
[1766160546239,63.40459733,126.28,126.19,13.49]
[1766160546434,46.74,126.28,126.21,13.49]
[1766160546834,0.05649254,126.26,126.23,0.05195222]
[1766160550540,0.05649254,126.26,126.23,0.00195222]
[1766160554039,12.91,126.3,126.23,13.49195222]
[1766160554242,46.74,126.31,126.23,13.49195222]
[1766160554541,46.74,126.31,126.23,13.49]
[1766160554841,16.66459733,126.29,126.2,13.49]
[1766160555034,0.05564839,126.28,126.2,13.49]
[1766160555336,0.05467782,126.25,126.23,0.05529701]
[1766160556339,12.96467782,126.25,126.19,7.31558585]
[1766160556643,16.71927515,126.25,126.18,7.1364]
[1766160556842,16.66459733,126.25,126.18,7.1364]
[1766160557045,16.66459733,126.28,126.19,13.49]
[1766160557541,0.0557596,126.25,126.22,0.05180842]
[1766160560645,46.74,126.29,126.22,12.25180842]
[1766160560945,46.74,126.29,126.23,7.1336]
[1766160561145,12.85,126.28,126.2,7.31558585]
[1766160561345,12.85,126.28,126.19,123.1988]
[1766160561346,16.60459733,126.28,126.19,19.51558585]
[1766160561540,16.60459733,126.28,126.21,7.1347]
[1766160561742,0.06024308,126.25,126.22,0.05283524]
[1766160564253,12.85,126.23,126.18,7.31558585]
[1766160564547,3.75459733,126.22,126.14,12.2]
[1766160564947,3.75459733,126.22,126.14,26.65398585]
[1766160565149,16.60459733,126.22,126.14,26.65398585]
[1766160565349,0.05954795,126.19,126.17,0.05268427]
[1766160565738,16.60459733,126.22,126.17,0.05268427]
[1766160566449,16.60459733,126.24,126.17,0.05268427]
[1766160566647,0.05747032,126.22,126.19,0.05470002]
[1766160568847,3.81206765,126.22,126.19,0.05470002]
[1766160569846,3.81206765,126.22,126.15,7.31558585]
[1766160570251,3.81206765,126.22,126.14,12.2]
[1766160570252,3.75459733,126.2,126.14,12.2]
[1766160570955,0.05653364,126.18,126.16,0.05232476]
[1766160571453,3.75459733,126.24,126.16,12.25232476]
[1766160571655,16.60459733,126.24,126.16,12.2]
[1766160571949,23.73799733,126.24,126.16,12.2]
[1766160572255,16.60459733,126.22,126.15,7.1381]
[1766160572456,0.05732421,126.2,126.17,0.05125908]
[1766160578764,3.75465426,126.23,126.17,7.18825908]
[1766160579353,15.38465426,126.23,126.17,7.18825908]
[1766160579554,11.63,126.22,126.17,0.05125908]
[1766160579853,3.81321445,126.21,126.17,0.05125908]
[1766160581149,3.81321445,126.21,126.15,12.47]
[1766160581361,3.75465426,126.19,126.13,7.139]
[1766160582363,0.05304741,126.17,126.15,0.05745662]
[1766160586250,11.63,126.22,126.15,0.05745662]
[1766160586668,11.63,126.22,126.15,12.52745662]
[1766160587262,0.05430179,126.2,126.15,19.66565662]
[1766160588052,0.00430179,126.2,126.15,12.52745662]
[1766160589166,0.00430179,126.2,126.17,19.607]
[1766160589463,11.63,126.25,126.17,19.607]
[1766160589667,11.63,126.25,126.18,12.47]
[1766160590466,11.6887422,126.23,126.2,0.00448726]
[1766160593974,0.0587422,126.23,126.2,0.00448726]
[1766160596869,11.6887422,126.23,126.2,0.00448726]
[1766160597570,0.0587422,126.23,126.2,0.00448726]
[1766160600474,58.39,126.29,126.21,12.47]
[1766160600688,12.9743858,126.34,126.24,12.47]
[1766160600970,12.9743858,126.34,126.27,12.47]
[1766160601372,0.05121931,126.32,126.29,0.0601755]
[1766160601678,0.05121931,126.32,126.24,19.78558585]
[1766160601679,11.68121931,126.32,126.24,19.78558585]
[1766160601974,11.63,126.32,126.24,59.25]
[1766160602376,11.63,126.31,126.23,7.31558585]
[1766160602673,0.05846838,126.28,126.26,0.05683836]
[1766160603580,18.84310963,126.34,126.26,0.05683836]
[1766160603879,12.9743858,126.34,126.25,12.47]
[1766160604575,0.05962071,126.31,126.28,0.05484025]
[1766160605565,18.96677792,126.37,126.28,11.96484025]
[1766160605763,11.72,126.37,126.28,11.91]
[1766160606178,11.72,126.37,126.29,11.91]
[1766160606473,46.76,126.39,126.3,11.91]
[1766160606676,0.055083,126.36,126.33,0.05994131]
[1766160608080,11.72,126.43,126.34,11.91]
[1766160608464,11.72,126.43,126.34,19.0372]
[1766160608677,11.72,126.43,126.35,11.91]
[1766160608878,0.05323075,126.4,126.38,0.05733195]
[1766160609078,46.74,126.45,126.38,0.05733195]
[1766160609265,11.72,126.46,126.38,11.96733195]
[1766160609465,11.72,126.46,126.38,11.91]
[1766160609775,11.72,126.46,126.36,46.76]
[1766160609776,11.72,126.44,126.36,46.76]
[1766160609977,11.72,126.44,126.39,0.05288556]
[1766160609978,0.05777323,126.41,126.39,0.05288556]
[1766160610678,58.44,126.47,126.39,0.05288556]
[1766160610875,58.44,126.47,126.37,11.91]
[1766160611076,58.44,126.47,126.38,11.91]
[1766160611273,46.72,126.47,126.39,11.91]
[1766160611475,11.72,126.5,126.4,11.91]
[1766160611677,0.05807248,126.46,126.44,0.06084682]
[1766160614286,11.72,126.5,126.44,0.06084682]
[1766160614993,122.4531,126.5,126.44,0.00084682]
[1766160615284,11.72,126.49,126.44,0.00084682]
[1766160615583,11.72,126.49,126.41,11.91]
[1766160615986,11.72,126.49,126.44,0.05619784]
[1766160615987,0.05543107,126.46,126.44,0.05619784]
[1766160616186,7.118,126.51,126.44,0.05619784]
[1766160616187,18.838,126.51,126.44,0.05619784]
[1766160617194,0.04225054,126.49,126.44,0.05619784]
[1766160618386,11.28225054,126.49,126.38,18.4451]
[1766160618586,11.24,126.48,126.38,11.32]
[1766160619495,0.05668647,126.44,126.42,0.054064]
[1766160619788,11.24,126.48,126.42,0.054064]
[1766160619998,11.24,126.47,126.42,0.004064]
[1766160620887,11.24,126.44,126.34,18.4472]
[1766160621478,11.24,126.44,126.36,11.32]
[1766160621777,7.121,126.46,126.36,11.32]
[1766160621981,0.05917625,126.42,126.4,0.05439388]
[1766160622590,0.05917625,126.42,126.35,11.32]
[1766160623391,11.24,126.4,126.32,11.32]
[1766160623589,0.05281509,126.37,126.35,0.05384878]
[1766160624489,0.05281509,126.37,126.35,0.00384878]
[1766160624690,0.05281509,126.37,126.29,58.04]
[1766160624894,18.365,126.39,126.3,11.32]
[1766160625093,11.24,126.39,126.3,11.32]
[1766160625694,0.06078824,126.36,126.33,0.0552464]
[1766160627183,11.24,126.42,126.33,0.0552464]
[1766160627389,11.24,126.42,126.33,11.32]
[1766160628102,0.05219672,126.39,126.36,0.05118359]
[1766160628397,0.05219672,126.39,126.36,0.00118359]
[1766160628801,11.29219672,126.39,126.3,11.32]
[1766160628997,7.1255,126.38,126.3,11.32]
[1766160629697,18.3655,126.38,126.3,11.32]
[1766160629897,0.060771,126.35,126.33,0.05123449]
[1766160632299,0.000771,126.35,126.33,0.00123449]
[1766160632494,11.240771,126.35,126.25,11.32]
[1766160632702,11.24,126.33,126.22,18.454]
[1766160632907,11.24,126.32,126.23,11.32]
[1766160633608,0.00148944,126.29,126.26,11.370267]
[1766160633803,11.24,126.35,126.26,11.32]
[1766160634909,0.05620836,126.32,126.29,0.0591575]
[1766160635603,58.07,126.38,126.29,11.3991575]
[1766160635812,58.07,126.38,126.29,11.34]
[1766160636402,0.05728345,126.35,126.32,0.05258303]
[1766160638006,18.4943,126.4,126.32,0.05258303]
[1766160638211,18.4943,126.4,126.31,11.34]
[1766160638602,18.4949,126.39,126.31,11.34]
[1766160638808,0.02071715,126.36,126.34,0.05566417]
[1766160642613,0.00071715,126.36,126.34,0.05566417]
[1766160644509,0.00071715,126.36,126.28,11.34]
[1766160644709,11.37,126.36,126.28,11.34]
[1766160644899,11.37,126.36,126.25,53.97655698]
[1766160644900,11.37,126.35,126.25,58.08]
[1766160645313,7.1278,126.34,126.26,11.34]
[1766160645510,0.05028908,126.31,126.29,0.05362092]
[1766160646817,58.07,126.38,126.29,11.39362092]
[1766160647017,65.1956,126.38,126.3,11.34]
[1766160647516,11.37,126.38,126.3,11.34]
[1766160647709,11.37,126.38,126.33,0.05188165]
[1766160647909,7.1259,126.37,126.33,0.05188165]
[1766160648214,11.37,126.38,126.33,0.05188165]
[1766160648412,65.1939,126.41,126.33,0.05188165]
[1766160648618,11.37,126.4,126.36,0.00465019]
[1766160649817,0.05050351,126.39,126.36,0.00465019]
[1766160663726,0.05050351,126.39,126.31,7.1288]
[1766160663727,11.42050351,126.39,126.31,7.1288]
[1766160664026,11.37,126.39,126.31,7.1288]
[1766160664532,7.1254,126.38,126.3,11.34]
[1766160664824,0.0500015,126.36,126.33,0.05295588]
[1766160665619,0.0500015,126.36,126.3,10.21]
[1766160666129,1.5e-06,126.36,126.32,10.21]
[1766160666315,10.27,126.38,126.32,10.21]
[1766160666825,10.27,126.38,126.33,10.21]
[1766160667229,110.7757,126.46,126.34,10.26773741]
[1766160667531,110.7858,126.44,126.34,17.50936244]
[1766160667720,110.7858,126.44,126.34,10.21]
[1766160667921,7.1231,126.42,126.34,10.21]
[1766160668418,7.1231,126.42,126.37,0.05842981]
[1766160669436,10.21,126.43,126.37,0.05842981]
[1766160670532,56.9,126.45,126.37,10.26842981]
[1766160670733,56.9,126.45,126.4,0.05679773]
[1766160672038,10.2,126.45,126.4,0.05679773]
[1766160675139,46.7,126.47,126.4,0.05679773]
[1766160675436,10.12,126.5,126.4,10.26679773]
[1766160675632,10.12,126.5,126.44,0.05949098]
[1766160676734,46.68,126.52,126.44,7.18109098]
[1766160676936,56.77,126.52,126.47,0.054311]
[1766160678738,10.03,126.51,126.47,0.004311]
[1766160679841,0.05272551,126.5,126.47,0.004311]
[1766160683543,9.97272551,126.5,126.47,0.004311]
[1766160683847,9.97272551,126.5,126.42,10.35]
[1766160684144,9.92,126.5,126.42,10.35]
[1766160684547,9.92,126.5,126.42,17.4725]
[1766160685047,0.057889,126.47,126.45,0.05378105]
[1766160686934,46.68,126.52,126.45,10.40378105]
[1766160688348,9.92,126.53,126.46,10.35]
[1766160688547,9.92,126.53,126.48,0.05468285]
[1766160689346,56.56,126.56,126.48,0.05468285]
[1766160689548,17.0159,126.55,126.51,0.00452939]
[1766160689746,9.84,126.54,126.51,0.00452939]
[1766160690549,9.89770859,126.54,126.51,0.00452939]
[1766160692651,0.05770859,126.54,126.51,0.00452939]
[1766160693848,13.58275057,126.54,126.51,0.00452939]
[1766160694155,9.79,126.53,126.45,57.05]
[1766160695047,0.05073961,126.5,126.48,0.05609446]
[1766160695251,9.79,126.53,126.48,0.05609446]
[1766160695557,3.73504198,126.54,126.48,0.05609446]
[1766160695753,13.53504198,126.54,126.47,10.32]
[1766160696256,13.53504198,126.54,126.49,0.05183719]
[1766160696451,20.65134198,126.54,126.49,0.05183719]
[1766160697359,9.78,126.53,126.49,0.00183719]
[1766160698264,16.8969,126.53,126.49,0.00183719]
[1766160698457,0.05299088,126.52,126.49,0.00183719]
[1766160698754,9.71,126.51,126.44,10.32]
[1766160699652,0.05121645,126.49,126.44,10.32]
[1766160699856,0.05121645,126.49,126.46,0.05875312]
[1766160704451,0.00121645,126.49,126.46,10.37875312]
[1766160705357,0.00121645,126.49,126.46,0.05875312]
[1766160712868,15.40024762,126.48,126.41,17.4435]
[1766160713284,126.12754762,126.51,126.42,10.32]
[1766160713561,5.84024762,126.47,126.39,10.32]
[1766160713766,9.56,126.46,126.37,10.32]
[1766160714062,0.05994515,126.44,126.37,17.4454]
[1766160714258,0.05994515,126.44,126.35,157.5417]
[1766160714259,0.05994515,126.44,126.38,10.32]
[1766160714464,9.56,126.46,126.38,10.32]
[1766160714669,9.56,126.46,126.38,17.4451]
[1766160714858,0.05379747,126.43,126.41,0.05284917]
[1766160715556,0.05379747,126.43,126.38,10.32]
[1766160715763,0.05379747,126.43,126.35,10.32]
[1766160715970,9.49,126.44,126.35,10.32]
[1766160716163,5.84024762,126.45,126.33,164.87866244]
[1766160716164,7.1216,126.45,126.37,10.32]
[1766160716365,9.48,126.46,126.37,10.32]
[1766160716761,0.05190398,126.43,126.4,0.05032994]
[1766160718475,9.51190398,126.43,126.35,10.32]
[1766160718677,16.5331,126.42,126.35,10.32]
[1766160719463,0.05025507,126.4,126.37,0.0601994]
[1766160719860,0.00025507,126.4,126.37,0.0601994]
[1766160720267,7.1204,126.47,126.39,10.32]
[1766160720565,9.45,126.48,126.39,10.32]
[1766160720962,16.5604,126.47,126.39,10.32]
[1766160721366,0.05017257,126.44,126.42,0.05756923]
[1766160721969,0.00017257,126.44,126.42,0.05756923]
[1766160722168,7.1194,126.49,126.42,0.05756923]
[1766160722374,9.48,126.5,126.42,10.37756923]
[1766160722575,9.48,126.5,126.42,10.32]
[1766160723275,0.00041234,126.47,126.45,0.05558439]
[1766160723465,9.52,126.52,126.44,10.32]
[1766160723661,9.52,126.52,126.41,10.32]
[1766160724062,9.5,126.49,126.41,10.32]
[1766160724362,0.05690101,126.46,126.44,0.05482646]
[1766160725568,0.05690101,126.46,126.44,0.00482646]
[1766160726674,9.5,126.49,126.44,0.00482646]
[1766160726986,9.49,126.51,126.44,0.00482646]
[1766160727173,16.608,126.51,126.43,17.3222]
[1766160727478,9.49,126.5,126.43,17.3222]
[1766160727775,0.0561789,126.48,126.45,0.06028459]
[1766160728479,0.0561789,126.48,126.45,0.00028459]
[1766160729167,9.4661789,126.48,126.4,10.2]
[1766160729369,9.41,126.48,126.4,10.2]
[1766160730179,0.05618269,126.45,126.43,0.05682449]
[1766160730778,0.05618269,126.45,126.4,10.2]
[1766160731172,0.05618269,126.45,126.4,17.324]
[1766160731867,7.1195,126.49,126.41,17.37512494]
[1766160732070,7.1182,126.51,126.42,10.2]
[1766160732275,9.38,126.51,126.42,10.2]
[1766160732870,0.05986682,126.48,126.45,0.05728495]
[1766160735275,7.1172,126.53,126.45,10.25728495]
[1766160735475,144.02242413,126.54,126.45,10.2]
[1766160735799,33.31692413,126.54,126.45,10.2]
[1766160735987,9.36,126.54,126.45,10.2]
[1766160736184,0.05853824,126.51,126.48,0.05270929]
[1766160736583,46.66,126.56,126.48,10.25270929]
[1766160736776,56.01,126.56,126.48,10.2]
[1766160737287,7.1158,126.55,126.48,10.2]
[1766160737787,7.1158,126.55,126.5,0.05754281]
[1766160738173,7.1164,126.54,126.5,0.05754281]
[1766160739279,9.33,126.55,126.5,0.05754281]
[1766160740081,46.66,126.56,126.5,10.63754281]
[1766160740387,9.31,126.61,126.5,10.63754281]
[1766160740581,10.68552126,126.61,126.54,0.05885185]
[1766160740890,16.4236,126.59,126.54,0.05885185]
[1766160741289,9.31,126.59,126.54,0.05885185]
[1766160742082,16.4126,126.61,126.54,0.05885185]
[1766160742790,9.29,126.64,126.55,10.58]
[1766160742980,9.29,126.64,126.58,0.06080421]
[1766160743591,128.21197826,126.67,126.58,0.06080421]
[1766160743592,11.99248927,126.67,126.58,10.64080421]
[1766160743790,9.29,126.66,126.61,0.05278449]
[1766160743996,10.6176473,126.67,126.61,0.05278449]
[1766160744188,9.29,126.66,126.61,0.05278449]
[1766160744498,46.66,126.68,126.61,0.05278449]
[1766160744881,9.29,126.69,126.61,0.05278449]
[1766160745081,9.28,126.72,126.64,0.05927154]
[1766160745288,9.28,126.72,126.67,0.05685898]
[1766160745495,16.3864,126.72,126.67,0.05685898]
[1766160745695,9.28,126.72,126.67,0.05685898]
[1766160745992,9.28,126.72,126.61,7.1121]
[1766160745993,119.7788,126.7,126.61,10.58]
[1766160746190,9.22,126.69,126.61,17.6923]
[1766160746583,9.22,126.72,126.64,10.58]
[1766160746800,0.05226021,126.69,126.67,0.05966151]
[1766160747090,0.058911,126.69,126.67,0.05013014]
[1766160748298,9.21,126.73,126.67,0.05013014]
[1766160748998,16.3159,126.73,126.67,0.05013014]
[1766160749589,7.1064,126.72,126.67,0.05013014]
[1766160749793,9.21,126.73,126.67,0.05013014]
[1766160749989,119.7315,126.72,126.67,0.00013014]
[1766160750194,16.2481,126.69,126.61,10.58]
[1766160750693,166.3271,126.69,126.61,10.58]
[1766160750888,7.1093,126.67,126.58,10.58]
[1766160751095,0.05985725,126.64,126.61,0.05208389]
[1766160751595,0.05985725,126.64,126.61,0.00208389]
[1766160754093,55.72985725,126.64,126.54,10.53]
[1766160754294,16.1609,126.64,126.55,10.53]
[1766160754484,119.6895,126.61,126.52,10.53]
[1766160754800,9.05,126.6,126.52,10.53]
[1766160755000,0.05798291,126.57,126.55,0.05902987]
[1766160755385,119.6761,126.63,126.55,0.05902987]
[1766160755588,119.6761,126.63,126.52,10.53]
[1766160755589,46.62,126.62,126.53,10.53]
[1766160756284,0.05518592,126.59,126.53,10.53]
[1766160756499,0.05518592,126.59,126.56,0.05310925]
[1766160757202,46.62,126.62,126.56,0.05310925]
[1766160758294,9.15,126.61,126.56,0.05310925]
[1766160758497,0.05314278,126.6,126.56,0.00310925]
[1766160758699,9.15314278,126.6,126.49,10.53]
[1766160758898,9.1,126.6,126.49,10.53]
[1766160759298,9.1,126.6,126.5,10.53]
[1766160759694,0.05484392,126.56,126.54,0.05299111]
[1766160760194,0.05484392,126.56,126.54,0.00299111]
[1766160760794,0.05484392,126.56,126.47,57.17]
[1766160760999,9.03,126.56,126.47,10.53]
[1766160761208,9.03,126.56,126.43,112.63962075]
[1766160761209,9.03,126.54,126.44,10.53]
[1766160761700,16.1371,126.53,126.48,0.05223164]
[1766160761893,0.05864222,126.5,126.48,0.05223164]
[1766160762506,0.05864222,126.5,126.48,0.00223164]
[1766160763609,9.02864222,126.5,126.4,10.53]
[1766160763800,8.97,126.5,126.4,10.53]
[1766160764604,0.05966024,126.46,126.44,0.00467634]
[1766160765503,46.67966024,126.46,126.38,7.125]
[1766160765801,46.62,126.47,126.38,10.53]
[1766160766009,46.62,126.47,126.35,10.53]
[1766160766010,8.91,126.45,126.35,10.53]
[1766160766401,0.05701182,126.41,126.39,0.05470574]
[1766160766913,46.64,126.46,126.39,10.58470574]
[1766160767100,46.64,126.46,126.39,10.53]
[1766160767302,8.9,126.48,126.39,10.53]
[1766160767303,55.54,126.48,126.39,10.53]
[1766160767898,0.05472042,126.45,126.42,0.05214851]
[1766160770312,0.05472042,126.45,126.42,0.00214851]
[1766160770513,8.95472042,126.45,126.36,10.53]
[1766160770715,8.9,126.45,126.36,10.53]
[1766160771116,46.64,126.44,126.36,10.53]
[1766160771420,0.0552746,126.41,126.39,0.05085547]
[1766160774308,0.0552746,126.41,126.36,10.53]
[1766160775309,0.0552746,126.41,126.37,0.06033961]
[1766160777711,0.0552746,126.41,126.37,0.00033961]
[1766160777909,46.66,126.4,126.33,10.53]
[1766160778310,8.8,126.41,126.33,10.53]
[1766160778514,55.46,126.41,126.33,10.53]
[1766160779112,0.05052014,126.38,126.31,7.129]
[1766160779313,0.05052014,126.38,126.31,17.659]
[1766160780210,0.05052014,126.38,126.33,0.06028063]
[1766160780411,8.79052014,126.38,126.33,0.06028063]
[1766160780724,8.68,126.35,126.25,17.6623]
[1766160780917,55.36,126.34,126.25,10.53]
[1766160781420,8.68,126.3,126.2,46.7]
[1766160781604,8.68,126.3,126.21,10.53]
[1766160781807,0.05476812,126.27,126.24,0.06006613]
[1766160782317,0.05476812,126.27,126.18,10.53]
[1766160782618,8.61,126.29,126.18,10.53]
[1766160782812,8.61,126.28,126.18,10.53]
[1766160783017,32.63288414,126.28,126.18,10.53]
[1766160783217,0.0597957,126.24,126.22,0.05978726]
[1766160783410,0.0597957,126.24,126.18,10.53]
[1766160783917,46.68,126.29,126.19,10.53]
[1766160784518,55.31,126.29,126.19,10.53]
[1766160784825,46.68,126.29,126.19,10.53]
[1766160785028,0.05556147,126.25,126.23,0.05360853]
[1766160785521,0.05556147,126.25,126.23,0.00360853]
[1766160786724,0.05556147,126.25,126.17,17.2869]
[1766160786923,7.1318,126.27,126.17,10.15]
[1766160786924,8.57,126.26,126.17,10.15]
[1766160787219,15.7029,126.25,126.17,10.15]
[1766160787412,8.57,126.23,126.14,56.87]
[1766160787611,0.05417092,126.2,126.17,0.05537678]
[1766160788422,0.05417092,126.2,126.11,17.2903]
[1766160788617,8.57,126.21,126.11,17.2903]
[1766160789012,8.57,126.21,126.11,10.15]
[1766160789529,0.05465589,126.17,126.15,0.0518169]
[1766160789712,8.57,126.21,126.15,0.0518169]
[1766160790134,166.2441,126.24,126.15,0.0518169]
[1766160790314,15.6938,126.23,126.13,10.15]
[1766160790513,126.6642,126.23,126.13,10.15]
[1766160790721,126.6642,126.23,126.17,0.05581731]
[1766160790920,0.05225179,126.19,126.11,10.15]
[1766160791127,126.6318,126.2,126.11,10.15]
[1766160791319,119.496,126.2,126.11,10.15]
[1766160791520,8.5,126.19,126.07,111.1081]
[1766160791827,0.0507767,126.14,126.12,0.05704929]
[1766160792027,0.05615153,126.14,126.12,0.05704929]
[1766160792223,8.55,126.18,126.12,0.05704929]
[1766160793116,0.0518461,126.16,126.12,0.05704929]
[1766160794227,8.5918461,126.16,126.08,10.15]
[1766160794523,8.54,126.16,126.08,10.15]
[1766160795125,0.05345903,126.13,126.11,0.05970802]
[1766160795920,8.53,126.19,126.11,10.20970802]
[1766160796130,8.53,126.19,126.11,10.15]
[1766160796533,64.54806814,126.22,126.11,10.15]
[1766160796724,71.68256814,126.22,126.12,17.2897]
[1766160797025,0.05871042,126.18,126.16,0.05226582]
[1766160799831,7.1332,126.24,126.16,0.05226582]
[1766160800136,128.81776814,126.25,126.15,10.23]
[1766160800338,7.134,126.23,126.15,10.23]
[1766160800731,0.05534254,126.2,126.18,0.0558694]
[1766160802144,7.134,126.23,126.18,0.0558694]
[1766160803132,7.19487181,126.22,126.18,0.0558694]
[1766160804442,0.06027181,126.22,126.18,0.0558694]
[1766160806045,0.06027181,126.22,126.18,10.2858694]
[1766160806532,0.00027181,126.22,126.18,10.2858694]
[1766160806732,46.76,126.26,126.18,10.2858694]
[1766160806939,119.6407,126.29,126.18,10.23]
[1766160807139,7.1322,126.26,126.18,57.03]
[1766160807340,119.6407,126.29,126.19,10.23]
[1766160807645,0.05848347,126.25,126.23,0.05084138]
[1766160811143,0.05848347,126.25,126.16,10.23]
[1766160811443,9.22806814,126.27,126.16,10.23]
[1766160811643,17.88806814,126.27,126.16,10.23]
[1766160811946,8.66,126.27,126.18,10.23]
[1766160812241,0.05940777,126.24,126.21,0.05781678]
[1766160815038,7.1311,126.28,126.21,0.05781678]
[1766160815648,7.1311,126.28,126.21,10.38781678]
[1766160816143,0.05571292,126.26,126.21,10.38781678]
[1766160816347,0.05571292,126.26,126.22,0.05412846]
[1766160820937,46.76,126.3,126.22,10.38412846]
[1766160821145,8.74,126.33,126.22,10.33]
[1766160821345,119.6088,126.35,126.23,10.33]
[1766160822048,0.05468476,126.3,126.28,0.05031139]
[1766160822254,0.0526709,126.3,126.28,0.00031139]
[1766160823455,7.1825709,126.3,126.28,0.00031139]
[1766160824953,7.1306,126.29,126.23,10.33]
[1766160825874,14.76250869,126.52,126.23,10.33]
[1766160825875,128.76706814,126.36,126.26,10.33]
[1766160826047,119.539,126.36,126.26,10.33]
[1766160826347,7.1276,126.34,126.26,10.33]
[1766160826951,0.05948894,126.31,126.29,0.05751878]
[1766160827352,7.1276,126.34,126.29,0.05751878]
[1766160827547,15.8068,126.36,126.29,0.05751878]
[1766160827851,8.68,126.36,126.29,0.05751878]
[1766160828354,0.05121781,126.34,126.29,0.05751878]
[1766160829356,7.1291,126.32,126.29,0.05751878]
[1766160830147,8.78,126.33,126.25,10.33]
[1766160831349,8.73204263,126.3,126.28,0.00201885]
[1766160831549,8.73204263,126.3,126.22,10.33]
[1766160831753,8.68,126.3,126.22,10.33]
[1766160832148,8.68,126.3,126.23,10.33]
[1766160832651,0.05383719,126.28,126.25,0.05113255]
[1766160833759,8.67,126.33,126.25,10.38113255]
[1766160833959,8.67,126.33,126.25,10.33]
[1766160834859,0.05518039,126.3,126.28,0.05241665]
[1766160835057,8.72518039,126.3,126.28,0.00241665]
[1766160835263,8.72518039,126.3,126.22,17.4639]
[1766160835454,8.67,126.29,126.19,121.3313]
[1766160835653,8.67,126.29,126.2,10.33]
[1766160836267,0.05434899,126.26,126.23,0.05494839]
[1766160837469,7.1276,126.34,126.24,10.33]
[1766160837767,8.71,126.35,126.26,10.33]
[1766160837968,8.71,126.35,126.27,10.33]
[1766160838558,0.05039549,126.32,126.3,0.05812859]
[1766160840065,8.70039549,126.32,126.24,10.33]
[1766160840262,8.65,126.32,126.24,10.33]
[1766160841069,0.0604989,126.29,126.27,0.05828627]
[1766160841266,110.8678,126.35,126.27,0.05828627]
[1766160841267,8.71,126.35,126.27,0.05828627]
[1766160841455,8.71,126.35,126.26,10.33]
[1766160841859,8.71,126.35,126.27,10.33]
[1766160842267,0.05797369,126.32,126.3,0.05541741]